[Event "Fagernes Chess GM-Swiss 2024"]
[Site "Fagernes"]
[Date "2024.03.27"]
[Round "4.44"]
[White "Okuno Okuno, Rion"]
[Black "Akshit Kumar J"]
[Result "1-0"]
[ECO "C42"]
[WhiteElo "1981"]
[BlackElo "2172"]
[Annotator "RC"]
[PlyCount "147"]
[EventDate "2024.03.25"]
[EventType "swiss"]
[EventCountry "NOR"]
[SourceTitle "playchess.com"]
[Source "ChessBase"]
[SourceQuality "1"]
[TimeControl "40/6000+30:2400+30"]

1. e4 {[%emt 0:00:04]} e5 {[%emt 0:06:53]} 2. Nf3 {[%emt 0:00:09]} Nf6 {[%emt 0:00:03]} 3. Nxe5 {[%emt 0:00:15]} d6 {[%emt 0:00:05]} 4. Nf3 {[%emt 0:00:13]} Nxe4 {[%emt 0:00:05]} 5. d4 {[%emt 0:00:06]} d5 {[%emt 0:00:15]} 6. Bd3 {[%emt 0:00:19]} Be7 {[%emt 0:00:24]} 7. O-O {[%emt 0:00:32]} Nc6 {[%emt 0:00:41]} 8. Nbd2 {[%emt 0:01:04]} Nd6 {[%emt 0:00:15]} 9. c3 {[%emt 0:00:31]} Bf5 {[%emt 0:01:24]} 10. Bc2 {[%emt 0:00:14]} O-O {[%emt 0:04:13]} 11. Bb3 {[%emt 0:00:28]} Ne4 {[%emt 0:01:43]} 12. Re1 {[%emt 0:03:27]} Re8 {[%emt 0:05:40]} 13. Nxe4 {[%emt 0:24:22]} dxe4 {[%emt 0:15:04]} 14. Nd2 {[%emt 0:14:39]} Bd6 {[%emt 0:08:10]} 15. Nc4 {[%emt 0:02:26]} Qf6 {[%emt 0:02:19]} 16. Nxd6 {[%emt 0:03:20]} Qxd6 {[%emt 0:00:27]} 17. Qh5 {[%emt 0:03:22]} Bg6 {[%emt 0:17:50]} 18. Qg5 {[%emt 0:03:53]} h6 {[%emt 0:05:12]} 19. Qg4 {[%emt 0:05:02]} Na5 {[%emt 0:13:44]} 20. Bf4 {[%emt 0:05:56]} Qc6 {[%emt 0:00:43]} 21. d5 {[%emt 0:14:27]} Qb5 {[%emt 0:01:37]} 22. c4 {[%emt 0:02:03]} Qc5 {[%emt 0:10:02]} 23. Rac1 {[%emt 0:05:20]} Re7 {[%emt 0:04:36]} 24. Red1 {[%emt 0:01:00]} Nxb3 {[%emt 0:05:49]} 25. axb3 {[%emt 0:00:04]} Rd8 {[%emt 0:00:11]} 26. h4 {[%emt 0:00:46]} Kh8 {[%emt 0:01:12]} 27. Be3 {[%emt 0:06:51]} Qd6 {[%emt 0:01:59]} 28. h5 {[%emt 0:02:49]} Bh7 {[%emt 0:00:04]} 29. Qh4 {[%emt 0:03:31]} Red7 {[%emt 0:01:33]} 30. Bd4 {[%emt 0:00:55]} Kg8 {[%emt 0:01:05]} 31. Rc3 {[%emt 0:01:49]} f5 {[%emt 0:00:48]} 32. Be3 {[%emt 0:00:40]} Rf8 {[%emt 0:01:47]} 33. Bf4 {[%emt 0:00:47]} Qc5 {[%emt 0:00:30]} 34. Qg3 {[%emt 0:00:51]} Kh8 {[%emt 0:00:33]} 35. Be5 {[%emt 0:00:38]} Rdf7 {[%emt 0:00:30]} 36. Qf4 {[%emt 0:00:08]} Qe7 {[%emt 0:00:32]} 37. Rg3 {[%emt 0:00:37]} Re8 {[%emt 0:00:29]} 38. Bd4 {[%emt 0:00:31]} Qd6 {[%emt 0:00:10]} 39. Be3 {[%emt 0:01:36]} Qxf4 {[%emt 0:00:45]} 40. Bxf4 {[%emt 0:00:03]} Rd7 {[%emt 0:00:33]} 41. Ra1 {[%emt 0:43:46]} a6 {[%emt 0:05:59]} 42. Kf1 {[%emt 0:00:00]} Bg8 {[%emt 0:02:20]} 43. Rh3 {[%emt 0:00:00]} Bf7 {[%emt 0:07:35]} 44. Ke2 {[%emt 0:00:00]} Kh7 {[%emt 0:06:19]} 45. Kd2 {[%emt 0:00:00]} Rb8 {[%emt 0:11:12]} 46. Kc3 {[%emt 0:00:00]} Re8 {[%emt 0:01:54]} 47. Kd4 {[%emt 0:00:00]} Ree7 {[%emt 0:00:53]} 48. Rg1 {[%emt 0:00:00]} Be8 {[%emt 0:01:45]} 49. Rh4 {[%emt 0:00:00]} Bf7 {[%emt 0:00:36]} 50. Rh3 {[%emt 0:00:00]} Be6 {[%emt 0:01:47]} 51. Ke3 {[%emt 0:00:00]} Bf7 {[%emt 0:00:09]} 52. Rh4 {[%emt 0:00:00]} Re8 {[%emt 0:00:36]} 53. g4 {[%emt 0:00:00]} fxg4 {[%emt 0:00:17]} 54. Rgxg4 {[%emt 0:00:00]} b5 {[%emt 0:05:08]} 55. Bg3 {[%emt 0:00:00]} bxc4 {[%emt 0:00:11]} 56. bxc4 {[%emt 0:00:00]} c6 {[%emt 0:00:46]} 57. d6 {[%emt 0:00:07]} Bxc4 {[%emt 0:00:32]} 58. Rxe4 {[%emt 0:00:13]} Rxe4+ {[%emt 0:00:28]} 59. Rxe4 {[%emt 0:00:31]} Bf7 {[%emt 0:00:20]} 60. Ra4 {[%emt 0:02:30]} Bxh5 {[%emt 0:01:16]} 61. Rxa6 {[%emt 0:00:20]} Bg4 {[%emt 0:00:28]} 62. Rxc6 {[%emt 0:00:31]} Rb7 {[%emt 0:00:11]} 63. Rc7 {[%emt 0:02:26]} Rb3+ {[%emt 0:00:31]} 64. Ke4 {[%emt 0:01:49]} Rb4+ {[%emt 0:00:51]} 65. Kd3 {[%emt 0:01:11]} Rxb2 {[%emt 0:00:26]} 66. Be5 {[%emt 0:00:41]} Bf5+ {[%emt 0:00:06]} 67. Ke3 {[%emt 0:01:41]} Rb3+ {[%emt 0:00:51]} 68. Kf4 {[%emt 0:00:19]} Kg6 {[%emt 0:00:34]} 69. Rxg7+ {[%emt 0:00:10]} Kh5 {[%emt 0:00:03]} 70. Kxf5 {[%emt 0:00:13]} Rf3+ {[%emt 0:00:17]} 71. Ke6 {[%emt 0:00:20]} Rxf2 {[%emt 0:00:07]} 72. d7 {[%emt 0:00:10]} Rd2 {[%emt 0:00:19]} 73. Rg8 {[%emt 0:00:18]} Re2 {[%emt 0:01:28]} 74. Re8 {[%emt 0:00:26]} 1-0

[Event "Fagernes Chess GM-Swiss 2024"]
[Site "Fagernes"]
[Date "2024.03.27"]
[Round "4.45"]
[White "Mihajlov, Svetoslav"]
[Black "Zheng, Harry Z"]
[Result "1/2-1/2"]
[ECO "C90"]
[WhiteElo "2094"]
[BlackElo "2077"]
[Annotator "RC"]
[PlyCount "105"]
[EventDate "2024.03.25"]
[EventType "swiss"]
[EventCountry "NOR"]
[SourceTitle "playchess.com"]
[Source "ChessBase"]
[SourceQuality "1"]
[TimeControl "40/6000+30:2400+30"]

1. e4 {[%emt 0:00:04]} e5 {[%emt 0:00:13]} 2. Nf3 {[%emt 0:00:11]} Nc6 {[%emt 0:00:09]} 3. Bb5 {[%emt 0:00:12]} a6 {[%emt 0:00:10]} 4. Ba4 {[%emt 0:00:12]} Nf6 {[%emt 0:00:11]} 5. O-O {[%emt 0:00:20]} Be7 {[%emt 0:00:16]} 6. Re1 {[%emt 0:00:18]} b5 {[%emt 0:00:08]} 7. Bb3 {[%emt 0:00:09]} d6 {[%emt 0:00:09]} 8. c3 {[%emt 0:00:38]} O-O {[%emt 0:00:24]} 9. h3 {[%emt 0:01:15]} Na5 {[%emt 0:00:10]} 10. Bc2 {[%emt 0:00:12]} c5 {[%emt 0:00:09]} 11. d3 {[%emt 0:00:49]} Nc6 {[%emt 0:06:40]} 12. Nbd2 {[%emt 0:00:26]} Re8 {[%emt 0:01:55]} 13. Nf1 {[%emt 0:03:21]} Bf8 {[%emt 0:01:53]} 14. Ng3 {[%emt 0:08:16]} g6 {[%emt 0:02:13]} 15. Nh2 {[%emt 0:07:38]} Bg7 {[%emt 0:09:12]} 16. Be3 {[%emt 0:04:07]} Be6 {[%emt 0:07:18]} 17. Qd2 {[%emt 0:04:53]} Qe7 {[%emt 0:15:06]} 18. Bg5 {[%emt 0:00:37]} Qf8 {[%emt 0:01:41]} 19. Bb3 {[%emt 0:04:45]} h6 {[%emt 0:09:57]} 20. Bxe6 {[%emt 0:03:09]} Rxe6 {[%emt 0:01:23]} 21. Bxf6 {[%emt 0:00:21]} Bxf6 {[%emt 0:01:28]} 22. Ng4 {[%emt 0:01:57]} Bg7 {[%emt 0:01:35]} 23. Ne3 {[%emt 0:00:09]} Ne7 {[%emt 0:07:32]} 24. Nd5 {[%emt 0:12:57]} Nxd5 {[%emt 0:01:16]} 25. exd5 {[%emt 0:00:06]} Re7 {[%emt 0:04:43]} 26. a4 {[%emt 0:00:39]} f5 {[%emt 0:05:56]} 27. Ra2 {[%emt 0:05:11]} Rb7 {[%emt 0:06:31]} 28. Rea1 {[%emt 0:13:15]} b4 {[%emt 0:02:45]} 29. c4 {[%emt 0:02:50]} Re8 {[%emt 0:01:49]} 30. Re1 {[%emt 0:04:17]} Rbe7 {[%emt 0:02:40]} 31. Ne2 {[%emt 0:04:19]} g5 {[%emt 0:07:01]} 32. Ng3 {[%emt 0:00:14]} e4 {[%emt 0:06:03]} 33. dxe4 {[%emt 0:02:27]} fxe4 {[%emt 0:00:48]} 34. Nf1 {[%emt 0:03:30]} Qf6 {[%emt 0:05:09]} 35. b3 {[%emt 0:05:21]} Qd4 {[%emt 0:01:39]} 36. Re2 {[%emt 0:03:04]} Qf6 {[%emt 0:00:43]} 37. Ne3 {[%emt 0:00:28]} h5 {[%emt 0:00:14]} 38. Qd1 {[%emt 0:02:08]} Kf7 {[%emt 0:01:29]} 39. Re1 {[%emt 0:01:57]} Kg6 {[%emt 0:00:22]} 40. Rae2 {[%emt 0:05:22]} Qf4 {[%emt 0:00:31]} 41. Qc2 {[%emt 0:44:47]} Bc3 {[%emt 0:04:13]} 42. Rd1 {[%emt 0:00:00]} Kf7 {[%emt 0:04:52]} 43. Qc1 {[%emt 0:00:00]} Rg8 {[%emt 0:11:30]} 44. Nf1 {[%emt 0:00:00]} Bd4 {[%emt 0:01:56]} 45. Rde1 {[%emt 0:00:00]} Bc3 {[%emt 0:03:28]} 46. Rd1 {[%emt 0:00:00]} h4 {[%emt 0:14:38]} 47. Nh2 {[%emt 0:00:00]} Qxc1 {[%emt 0:02:45]} 48. Rxc1 {[%emt 0:00:00]} Kg6 {[%emt 0:00:22]} 49. Ng4 {[%emt 0:00:00]} Rge8 {[%emt 0:00:19]} 50. Kf1 {[%emt 0:00:00]} Bd4 {[%emt 0:00:17]} 51. Rce1 {[%emt 0:00:00]} Bc3 {[%emt 0:00:04]} 52. Rc1 {[%emt 0:00:00]} Bd4 {[%emt 0:00:06]} 53. Rce1 {[%emt 0:00:00]} 1/2-1/2

[Event "Fagernes Chess GM-Swiss 2024"]
[Site "Fagernes"]
[Date "2024.03.27"]
[Round "4.46"]
[White "Amundsen, Ask"]
[Black "Juodziukynas, Aidas"]
[Result "1-0"]
[ECO "E06"]
[WhiteElo "2069"]
[BlackElo "1893"]
[Annotator "NA RC"]
[PlyCount "101"]
[EventDate "2024.03.25"]
[EventType "swiss"]
[EventCountry "NOR"]
[SourceTitle "playchess.com"]
[Source "ChessBase"]
[SourceQuality "1"]
[TimeControl "40/6000+30:2400+30"]

1. Nf3 {[%emt 0:00:04]} Nf6 {[%emt 0:01:48]} 2. g3 {[%emt 0:00:11]} d5 {[%emt 0:00:41]} 3. Bg2 {[%emt 0:00:20]} c5 {[%emt 0:01:47]} 4. O-O {[%emt 0:00:33]} Nc6 {[%emt 0:00:42]} 5. d4 {[%emt 0:00:12]} e6 {[%emt 0:00:30]} 6. c4 {[%emt 0:00:23]} Be7 {[%emt 0:01:19]} 7. dxc5 {[%emt 0:01:04]} Bxc5 {[%emt 0:00:14]} 8. a3 {[%emt 0:01:47]} a5 {[%emt 0:00:30]} 9. Qc2 {[%emt 0:10:03]} Be7 {[%emt 0:03:32]} 10. Rd1 {[%emt 0:01:29]} O-O {[%emt 0:01:15]} 11. Nc3 {[%emt 0:01:55]} d4 {[%emt 0:10:46]} 12. e3 {[%emt 0:08:12]} e5 {[%emt 0:01:01]} 13. exd4 {[%emt 0:01:47]} exd4 {[%emt 0:00:21]} 14. Nb5 {[%emt 0:02:52]} Bc5 {[%emt 0:04:24]} 15. Nbxd4 {[%emt 0:05:36]} Nxd4 {[%emt 0:01:01]} 16. Nxd4 {[%emt 0:00:09]} Qb6 {[%emt 0:02:03]} 17. Nb5 {[%emt 0:06:22]} Bg4 {[%emt 0:01:49]} 18. Re1 {[%emt 0:03:33]} Rae8 {[%emt 0:05:36]} 19. Bf4 {[%emt 0:10:28]} Bf5 {[%emt 0:06:34]} 20. Qd2 {[%emt 0:12:09]} Rd8 {[%emt 0:00:35]} 21. Qe2 {[%emt 0:00:45]} Bd3 {[%emt 0:02:02]} 22. Bc7 {[%emt 0:01:28]} Qxc7 {[%emt 0:06:29]} 23. Nxc7 {[%emt 0:00:27]} Bxe2 {[%emt 0:00:23]} 24. Rxe2 {[%emt 0:00:02]} Rd4 {[%emt 0:02:07]} 25. Rc1 {[%emt 0:02:09]} Rc8 {[%emt 0:05:10]} 26. Nb5 {[%emt 0:00:49]} Rd3 {[%emt 0:00:21]} 27. Bxb7 {[%emt 0:01:22]} Rcd8 {[%emt 0:00:24]} 28. Nc3 {[%emt 0:04:46]} Rd2 {[%emt 0:02:16]} 29. Rc2 {[%emt 0:01:12]} R2d7 {[%emt 0:03:23]} 30. Bf3 {[%emt 0:03:21]} h6 {[%emt 0:03:42]} 31. Na4 {[%emt 0:01:30]} Ba7 {[%emt 0:01:22]} 32. b4 {[%emt 0:01:13]} Rd3 {[%emt 0:00:53]} 33. Rc3 {[%emt 0:05:57]} Rxc3 {[%emt 0:01:46]} 34. Nxc3 {[%emt 0:00:30]} Rd3 {[%emt 0:01:28]} 35. Nb5 {[%emt 0:02:38]} Bb6 {[%emt 0:03:38]} 36. Be4 {[%emt 0:01:49]} Nxe4 {[%emt 0:01:36]} 37. Rxe4 {[%emt 0:00:08]} axb4 {[%emt 0:00:53]} 38. axb4 {[%emt 0:00:04]} Rb3 {[%emt 0:00:34]} 39. Re8+ {[%emt 0:01:31]} Kh7 {[%emt 0:00:12]} 40. Rb8 {[%emt 0:00:18]} Rxb4 {[%emt 0:01:12]} 41. Rxb6 {[%emt 0:40:11]} Rxc4 {[%emt 0:40:14]} 42. Nd6 {[%emt 0:00:21]} Rc1+ {[%emt 0:01:12]} 43. Kg2 {[%emt 0:00:05]} f6 {[%emt 0:00:57]} 44. Rb7 {[%emt 0:00:24]} Rc5 {[%emt 0:01:08]} 45. Ne8 {[%emt 0:00:17]} Rg5 {[%emt 0:01:21]} 46. Nxf6+ {[%emt 0:00:11]} Kg6 {[%emt 0:00:44]} 47. Ne8 {[%emt 0:00:09]} Kh7 {[%emt 0:00:17]} 48. Rxg7+ {[%emt 0:00:13]} Rxg7 {[%emt 0:00:33]} 49. Nxg7 {[%emt 0:00:06]} Kxg7 {[%emt 0:00:16]} 50. Kf3 {[%emt 0:00:22]} Kg6 {[%emt 0:00:06]} 51. Ke4 {[%emt 0:00:38]} 1-0

[Event "Fagernes Chess GM-Swiss 2024"]
[Site "Fagernes"]
[Date "2024.03.27"]
[Round "4.47"]
[White "Thangavel, Gokul"]
[Black "Valcu, Lavinia"]
[Result "1-0"]
[ECO "A40"]
[WhiteElo "1990"]
[BlackElo "2070"]
[Annotator "RC"]
[PlyCount "83"]
[EventDate "2024.03.25"]
[EventType "swiss"]
[EventCountry "NOR"]
[SourceTitle "playchess.com"]
[Source "ChessBase"]
[SourceQuality "1"]
[TimeControl "40/6000+30:2400+30"]

1. Nf3 {[%emt 0:00:10]} b6 {[%emt 0:02:28]} 2. d4 {[%emt 0:00:11]} Bb7 {[%emt 0:00:13]} 3. Bf4 {[%emt 0:01:51]} e6 {[%emt 0:01:35]} 4. e3 {[%emt 0:00:04]} f5 {[%emt 0:00:44]} 5. c4 {[%emt 0:00:04]} Nf6 {[%emt 0:01:08]} 6. h3 {[%emt 0:00:05]} d6 {[%emt 0:09:13]} 7. Nc3 {[%emt 0:00:06]} Nbd7 {[%emt 0:01:01]} 8. Be2 {[%emt 0:12:38]} Be7 {[%emt 0:09:45]} 9. O-O {[%emt 0:01:08]} Ne4 {[%emt 0:03:27]} 10. Nxe4 {[%emt 0:16:30]} fxe4 {[%emt 0:01:13]} 11. Nd2 {[%emt 0:00:27]} O-O {[%emt 0:01:35]} 12. Qc2 {[%emt 0:11:25]} Nf6 {[%emt 0:08:15]} 13. f3 {[%emt 0:06:11]} exf3 {[%emt 0:04:30]} 14. Bxf3 {[%emt 0:00:05]} Bxf3 {[%emt 0:02:21]} 15. Rxf3 {[%emt 0:04:31]} Nh5 {[%emt 0:08:05]} 16. Raf1 {[%emt 0:12:28]} Nxf4 {[%emt 0:01:27]} 17. Rxf4 {[%emt 0:01:22]} Rxf4 {[%emt 0:03:00]} 18. Rxf4 {[%emt 0:04:03]} Bg5 {[%emt 0:00:58]} 19. Re4 {[%emt 0:01:17]} Qf6 {[%emt 0:01:20]} 20. Nf3 {[%emt 0:02:15]} Bh6 {[%emt 0:08:10]} 21. Qa4 {[%emt 0:08:41]} Qf5 {[%emt 0:08:36]} 22. Qc6 {[%emt 0:01:35]} Rf8 {[%emt 0:00:24]} 23. c5 {[%emt 0:03:25]} bxc5 {[%emt 0:10:00]} 24. dxc5 {[%emt 0:00:30]} Qd5 {[%emt 0:00:54]} 25. Qxd5 {[%emt 0:01:12]} exd5 {[%emt 0:00:06]} 26. Re7 {[%emt 0:00:12]} Rf7 {[%emt 0:00:38]} 27. Re8+ {[%emt 0:00:10]} Rf8 {[%emt 0:00:04]} 28. Re7 {[%emt 0:00:05]} dxc5 {[%emt 0:08:37]} 29. Kf2 {[%emt 0:01:51]} g6 {[%emt 0:00:28]} 30. Rxc7 {[%emt 0:13:38]} Re8 {[%emt 0:00:08]} 31. Rxa7 {[%emt 0:02:19]} Bxe3+ {[%emt 0:00:22]} 32. Kf1 {[%emt 0:00:09]} d4 {[%emt 0:07:57]} 33. b3 {[%emt 0:01:15]} Rd8 {[%emt 0:02:01]} 34. Ke2 {[%emt 0:00:18]} Bf4 {[%emt 0:01:43]} 35. Kd3 {[%emt 0:02:56]} Re8 {[%emt 0:00:05]} 36. Kc4 {[%emt 0:02:10]} Rd8 {[%emt 0:01:51]} 37. Ne1 {[%emt 0:00:38]} Bh6 {[%emt 0:02:43]} 38. Nd3 {[%emt 0:00:32]} Bf8 {[%emt 0:00:04]} 39. a4 {[%emt 0:00:24]} Re8 {[%emt 0:00:40]} 40. Nxc5 {[%emt 0:00:35]} Rc8 {[%emt 0:01:38]} 41. b4 {[%emt 0:40:39]} d3 {[%emt 0:01:54]} 42. Rd7 {[%emt 0:00:00]} 1-0

[Event "Fagernes Chess GM-Swiss 2024"]
[Site "Fagernes"]
[Date "2024.03.27"]
[Round "4.48"]
[White "Gandrud, Vegar Koi"]
[Black "Sachi Jain"]
[Result "1-0"]
[ECO "E04"]
[WhiteElo "2293"]
[BlackElo "1992"]
[Annotator "RC"]
[PlyCount "147"]
[EventDate "2024.03.25"]
[EventType "swiss"]
[EventCountry "NOR"]
[SourceTitle "playchess.com"]
[Source "ChessBase"]
[SourceQuality "1"]
[TimeControl "40/6000+30:2400+30"]

1. d4 {[%emt 0:00:01]} d5 {[%emt 0:01:16]} 2. c4 {[%emt 0:00:06]} e6 {[%emt 0:00:06]} 3. Nf3 {[%emt 0:00:03]} Nf6 {[%emt 0:00:21]} 4. g3 {[%emt 0:00:08]} dxc4 {[%emt 0:00:48]} 5. Bg2 {[%emt 0:00:10]} c5 {[%emt 0:00:18]} 6. O-O {[%emt 0:00:43]} Nc6 {[%emt 0:00:56]} 7. dxc5 {[%emt 0:00:23]} Qxd1 {[%emt 0:00:41]} 8. Rxd1 {[%emt 0:00:02]} Bxc5 {[%emt 0:00:08]} 9. Nbd2 {[%emt 0:00:20]} c3 {[%emt 0:03:21]} 10. bxc3 {[%emt 0:00:02]} Bd7 {[%emt 0:01:37]} 11. Nb3 {[%emt 0:06:16]} Be7 {[%emt 0:04:24]} 12. c4 {[%emt 0:00:57]} O-O {[%emt 0:03:05]} 13. Bb2 {[%emt 0:00:18]} Rfd8 {[%emt 0:00:12]} 14. c5 {[%emt 0:03:05]} Be8 {[%emt 0:03:27]} 15. Nfd2 {[%emt 0:05:00]} b6 {[%emt 0:06:46]} 16. Rac1 {[%emt 0:10:45]} bxc5 {[%emt 0:05:11]} 17. Nxc5 {[%emt 0:00:08]} Bxc5 {[%emt 0:03:04]} 18. Rxc5 {[%emt 0:00:12]} Rab8 {[%emt 0:00:37]} 19. Bxf6 {[%emt 0:19:17]} gxf6 {[%emt 0:00:06]} 20. Bxc6 {[%emt 0:00:05]} Rbc8 {[%emt 0:02:42]} 21. Rdc1 {[%emt 0:00:13]} Rxd2 {[%emt 0:01:24]} 22. Bxe8 {[%emt 0:00:12]} Rxe8 {[%emt 0:00:01]} 23. R1c2 {[%emt 0:01:50]} Red8 {[%emt 0:04:02]} 24. Rxd2 {[%emt 0:00:18]} Rxd2 {[%emt 0:00:02]} 25. Ra5 {[%emt 0:00:09]} Rd7 {[%emt 0:00:05]} 26. e4 {[%emt 0:03:32]} Kg7 {[%emt 0:05:22]} 27. Kg2 {[%emt 0:00:35]} Kg6 {[%emt 0:00:57]} 28. g4 {[%emt 0:02:15]} e5 {[%emt 0:00:59]} 29. Ra6 {[%emt 0:04:50]} Rc7 {[%emt 0:02:17]} 30. Kg3 {[%emt 0:00:37]} h6 {[%emt 0:02:28]} 31. h4 {[%emt 0:00:39]} Kg7 {[%emt 0:04:09]} 32. h5 {[%emt 0:00:51]} Rc3+ {[%emt 0:03:15]} 33. Kg2 {[%emt 0:00:53]} Rc7 {[%emt 0:01:51]} 34. Kf3 {[%emt 0:00:52]} Rc3+ {[%emt 0:01:28]} 35. Ke2 {[%emt 0:00:24]} Rc2+ {[%emt 0:00:07]} 36. Ke3 {[%emt 0:00:06]} Rc3+ {[%emt 0:00:06]} 37. Kd2 {[%emt 0:00:29]} Rc4 {[%emt 0:00:09]} 38. Kd3 {[%emt 0:00:20]} Rd4+ {[%emt 0:00:07]} 39. Ke3 {[%emt 0:00:04]} Rd7 {[%emt 0:00:03]} 40. f3 {[%emt 0:00:10]} Rc7 {[%emt 0:01:49]} 41. Kd3 {[%emt 0:46:29]} Rd7+ {[%emt 0:40:04]} 42. Kc4 {[%emt 0:00:30]} Rd4+ {[%emt 0:00:37]} 43. Kc3 {[%emt 0:00:37]} Rd1 {[%emt 0:00:54]} 44. Ra3 {[%emt 0:02:26]} Kf8 {[%emt 0:01:11]} 45. Kb4 {[%emt 0:00:36]} Rd7 {[%emt 0:00:21]} 46. Kb5 {[%emt 0:00:59]} Ke7 {[%emt 0:00:39]} 47. Ka6 {[%emt 0:00:30]} Kd8 {[%emt 0:00:54]} 48. Rc3 {[%emt 0:03:26]} Rd2 {[%emt 0:01:11]} 49. a4 {[%emt 0:02:13]} Ra2 {[%emt 0:01:31]} 50. a5 {[%emt 0:00:58]} Kd7 {[%emt 0:01:00]} 51. Rb3 {[%emt 0:03:39]} Kc6 {[%emt 0:00:38]} 52. Rb8 {[%emt 0:00:51]} Kc5 {[%emt 0:02:31]} 53. Rb7 {[%emt 0:01:02]} Ra3 {[%emt 0:00:43]} 54. Rxa7 {[%emt 0:00:19]} Rxf3 {[%emt 0:00:08]} 55. Rxf7 {[%emt 0:00:06]} Kd4 {[%emt 0:04:21]} 56. Kb7 {[%emt 0:16:23]} Rb3+ {[%emt 0:00:45]} 57. Ka7 {[%emt 0:00:30]} Kxe4 {[%emt 0:01:54]} 58. Rxf6 {[%emt 0:00:15]} Kd3 {[%emt 0:01:06]} 59. Rxh6 {[%emt 0:00:31]} e4 {[%emt 0:00:20]} 60. Rd6+ {[%emt 0:10:46]} Ke2 {[%emt 0:02:24]} 61. Re6 {[%emt 0:00:58]} e3 {[%emt 0:00:21]} 62. h6 {[%emt 0:00:13]} Rb1 {[%emt 0:00:09]} 63. h7 {[%emt 0:01:05]} Rh1 {[%emt 0:00:03]} 64. Re7 {[%emt 0:00:11]} Kf2 {[%emt 0:00:27]} 65. g5 {[%emt 0:00:08]} e2 {[%emt 0:01:13]} 66. g6 {[%emt 0:00:10]} Rh3 {[%emt 0:00:32]} 67. a6 {[%emt 0:01:09]} e1=Q {[%emt 0:01:33]} 68. Rxe1 {[%emt 0:00:06]} Kxe1 {[%emt 0:00:03]} 69. Kb8 {[%emt 0:01:49]} Rb3+ {[%emt 0:00:05]} 70. Kc8 {[%emt 0:00:15]} Rc3+ {[%emt 0:00:04]} 71. Kd8 {[%emt 0:00:03]} Rd3+ {[%emt 0:00:04]} 72. Ke8 {[%emt 0:00:10]} Re3+ {[%emt 0:00:02]} 73. Kf8 {[%emt 0:00:10]} Rf3+ {[%emt 0:00:03]} 74. Kg7 {[%emt 0:00:07]} 1-0

[Event "Fagernes Chess GM-Swiss 2024"]
[Site "Fagernes"]
[Date "2024.03.27"]
[Round "4.49"]
[White "Bech, Havard Eriksen"]
[Black "Joel Paul Ganta"]
[Result "0-1"]
[ECO "D45"]
[WhiteElo "1951"]
[BlackElo "1993"]
[Annotator "RC"]
[PlyCount "136"]
[EventDate "2024.03.25"]
[EventType "swiss"]
[EventCountry "NOR"]
[SourceTitle "playchess.com"]
[Source "ChessBase"]
[SourceQuality "1"]
[TimeControl "40/6000+30:2400+30"]

1. c4 {[%emt 0:00:08]} c6 {[%emt 0:03:25]} 2. Nf3 {[%emt 0:00:15]} Nf6 {[%emt 0:00:04]} 3. Nc3 {[%emt 0:01:52]} d5 {[%emt 0:00:05]} 4. e3 {[%emt 0:01:24]} Nbd7 {[%emt 0:00:26]} 5. d4 {[%emt 0:01:10]} e6 {[%emt 0:01:31]} 6. Qc2 {[%emt 0:00:53]} Bd6 {[%emt 0:00:04]} 7. b3 {[%emt 0:00:11]} O-O {[%emt 0:00:58]} 8. Bb2 {[%emt 0:00:22]} b6 {[%emt 0:02:59]} 9. Be2 {[%emt 0:00:35]} Bb7 {[%emt 0:00:05]} 10. O-O {[%emt 0:00:11]} Rc8 {[%emt 0:01:00]} 11. Rad1 {[%emt 0:06:02]} Qe7 {[%emt 0:00:15]} 12. Rfe1 {[%emt 0:02:22]} c5 {[%emt 0:01:25]} 13. cxd5 {[%emt 0:04:07]} exd5 {[%emt 0:10:58]} 14. Bf1 {[%emt 0:07:45]} cxd4 {[%emt 0:07:30]} 15. Nxd4 {[%emt 0:10:52]} g6 {[%emt 0:04:32]} 16. f3 {[%emt 0:03:25]} Bb4 {[%emt 0:02:19]} 17. Rc1 {[%emt 0:03:43]} a6 {[%emt 0:06:12]} 18. Qf2 {[%emt 0:02:33]} Rc7 {[%emt 0:01:46]} 19. a3 {[%emt 0:12:54]} Bd6 {[%emt 0:16:38]} 20. Nb1 {[%emt 0:25:33]} Rxc1 {[%emt 0:02:46]} 21. Rxc1 {[%emt 0:00:46]} Ne5 {[%emt 0:01:02]} 22. a4 {[%emt 0:06:36]} Neg4 {[%emt 0:01:38]} 23. fxg4 {[%emt 0:01:06]} Bxh2+ {[%emt 0:03:15]} 24. Kh1 {[%emt 0:00:01]} Ne4 {[%emt 0:00:26]} 25. Qf3 {[%emt 0:05:49]} Qh4 {[%emt 0:04:19]} 26. Qh3 {[%emt 0:00:12]} Nf2+ {[%emt 0:00:15]} 27. Kxh2 {[%emt 0:00:09]} Nxh3 {[%emt 0:00:04]} 28. gxh3 {[%emt 0:00:11]} Qf2+ {[%emt 0:00:07]} 29. Bg2 {[%emt 0:02:34]} Qxb2 {[%emt 0:00:02]} 30. Rc7 {[%emt 0:01:41]} Ba8 {[%emt 0:01:05]} 31. Nc3 {[%emt 0:00:14]} Qd2 {[%emt 0:00:06]} 32. Nce2 {[%emt 0:03:29]} Qxe3 {[%emt 0:00:27]} 33. Ra7 {[%emt 0:01:02]} Qe5+ {[%emt 0:06:37]} 34. Kh1 {[%emt 0:00:18]} a5 {[%emt 0:01:45]} 35. Rd7 {[%emt 0:02:09]} Re8 {[%emt 0:02:35]} 36. Bf3 {[%emt 0:00:19]} Qb8 {[%emt 0:01:35]} 37. Kg2 {[%emt 0:02:38]} Bb7 {[%emt 0:01:23]} 38. Kh1 {[%emt 0:01:23]} Kf8 {[%emt 0:01:58]} 39. Kg2 {[%emt 0:02:08]} Rc8 {[%emt 0:00:35]} 40. g5 {[%emt 0:00:54]} Ke8 {[%emt 0:00:13]} 41. Bg4 {[%emt 0:40:21]} Rc5 {[%emt 0:41:05]} 42. Nb5 {[%emt 0:00:00]} Rxb5 {[%emt 0:00:00]} 43. axb5 {[%emt 0:00:00]} Qc8 {[%emt 0:00:00]} 44. Rxf7 {[%emt 0:00:00]} Qxg4+ {[%emt 0:00:00]} 45. hxg4 {[%emt 0:00:00]} Kxf7 {[%emt 0:00:00]} 46. Nd4 {[%emt 0:00:00]} Ke7 {[%emt 0:00:00]} 47. Kf3 {[%emt 0:00:00]} Kd6 {[%emt 0:00:00]} 48. Kf4 {[%emt 0:00:00]} Bc8 {[%emt 0:00:00]} 49. Ne2 {[%emt 0:00:00]} Be6 {[%emt 0:00:00]} 50. Nc3 {[%emt 0:00:00]} Bd7 {[%emt 0:00:00]} 51. Ke3 {[%emt 0:00:00]} Ke5 {[%emt 0:00:00]} 52. Na4 {[%emt 0:00:00]} Bxb5 {[%emt 0:00:00]} 53. Nxb6 {[%emt 0:00:00]} d4+ {[%emt 0:00:00]} 54. Kf3 {[%emt 0:00:00]} Bc6+ {[%emt 0:00:00]} 55. Ke2 {[%emt 0:00:00]} Ke4 {[%emt 0:00:00]} 56. Kd2 {[%emt 0:00:01]} Bb5 {[%emt 0:00:00]} 57. Na8 {[%emt 0:02:38]} Bd7 {[%emt 0:00:00]} 58. Nb6 {[%emt 0:00:20]} Be6 {[%emt 0:00:00]} 59. Na4 {[%emt 0:00:14]} Bxg4 {[%emt 0:00:00]} 60. Nc5+ {[%emt 0:00:43]} Kf4 {[%emt 0:04:06]} 61. Kd3 {[%emt 0:03:06]} Bc8 {[%emt 0:01:15]} 62. Kxd4 {[%emt 0:00:18]} Kxg5 {[%emt 0:00:02]} 63. Ne4+ {[%emt 0:00:23]} Kf4 {[%emt 0:00:20]} 64. Nf6 {[%emt 0:00:29]} h5 {[%emt 0:01:55]} 65. Nd5+ {[%emt 0:00:17]} Kf3 {[%emt 0:00:44]} 66. Ne7 {[%emt 0:00:35]} Bf5 {[%emt 0:00:56]} 67. Nc6 {[%emt 0:00:10]} h4 {[%emt 0:00:05]} 68. Nxa5 {[%emt 0:00:19]} h3 {[%emt 0:00:15]} 0-1